fUST/lending_fUST_20240227
["ID","MTS","AMOUNT","RATE_DAILY","PERIOD"]
[315358426,1708987842286,-500.829993,0.00019452,2]
[315358427,1708987842295,-501.0634752,0.00019452,2]
[315358428,1708987842304,-612.23784616,0.00019452,2]
[315358429,1708987842314,-500.0,0.00019452,2]
[315358430,1708987842323,-500.0,0.00019452,2]
[315358431,1708987842332,-1598.84,0.00019452,2]
[315358432,1708987842342,-500.0,0.00019452,2]
[315358433,1708987842352,-500.0,0.00019452,2]
[315358434,1708987842361,-569.02009229,0.00019452,2]
[315358435,1708987842372,-500.0,0.00019452,2]
[315358436,1708987842382,-500.0,0.00019452,2]
[315358437,1708987842392,-500.0,0.00019452,2]
[315358438,1708987842401,-500.0,0.00019452,2]
[315358439,1708987842410,-500.0,0.00019452,2]
[315358440,1708987842419,-500.0,0.00019452,2]
[315358441,1708987842428,-10695.9,0.00019452,2]
[315358442,1708987842437,-3169.63,0.00019452,2]
[315358443,1708987842446,-500.0,0.00019452,2]
[315358444,1708987842455,-1421.48,0.00019452,2]
[315358445,1708987842465,-1242.97,0.00019452,2]
[315358446,1708987842474,-500.0,0.00019452,2]
[315358447,1708987842485,-532.69093167,0.00019452,2]
[315358449,1708987842495,-429.14374354,0.00019452,2]
[315358452,1708987842504,-500.0,0.00019452,2]
[315358453,1708987842514,-3446.49,0.00019452,2]
[315358455,1708987842526,-1987.99,0.00019452,2]
[315358456,1708987842535,-500.0,0.00019452,2]
[315358457,1708987842544,-1273.85,0.00019452,2]
[315358458,1708987842554,-500.0,0.00019452,2]
[315358459,1708987842563,-500.0,0.00019452,2]
[315358460,1708987842572,-500.0,0.00019452,2]
[315358461,1708987842582,-2537.49,0.00019452,2]
[315358462,1708987842591,-500.0,0.00019452,2]
[315358463,1708987842601,-500.0,0.00019452,2]
[315358464,1708987842612,-500.0,0.00019452,2]
[315358465,1708987842622,-500.0,0.00019452,2]
[315358466,1708987842632,-500.0,0.00019452,2]
[315358467,1708987842641,-500.0,0.00019452,2]
[315358468,1708987842651,-500.0,0.00019452,2]
[315358469,1708987842661,-500.0,0.00019452,2]
[315358470,1708987842669,-595.11,0.00019452,2]
[315358471,1708987842678,-501.25122817,0.00019452,2]
[315358473,1708987842688,-500.0,0.00019452,2]
[315358474,1708987842697,-500.0,0.00019452,2]
[315358475,1708987842706,-500.0,0.00019452,2]
[315358476,1708987842715,-1849.52,0.00019452,2]
[315358477,1708987842724,-500.0,0.00019452,2]
[315358478,1708987842733,-501.85263397,0.00019452,2]
[315358480,1708987842742,-500.0,0.00019452,2]
[315358482,1708987842752,-501.23926151,0.00019452,2]
[315358484,1708987842762,-1331.54,0.00019452,2]
[315358486,1708987842771,-2018.18,0.00019452,2]
[315358487,1708987842780,-500.0,0.00019452,2]
[315358489,1708987842789,-500.0,0.00019452,2]
[315358491,1708987842799,-500.0,0.00019452,2]
[315358493,1708987842808,-500.0,0.00019452,2]
[315358495,1708987842817,-500.0,0.00019452,2]
[315358498,1708987842827,-500.0,0.00019452,2]
[315358501,1708987842835,-500.0,0.00019452,2]
[315358504,1708987842844,-500.0,0.00019452,2]
[315358506,1708987842853,-17115.04,0.00019452,2]
[315358509,1708987842862,-500.0,0.00019452,2]
[315358512,1708987842871,-500.0,0.00019452,2]
[315358515,1708987842880,-500.0,0.00019452,2]
[315358518,1708987842889,-500.0,0.00019452,2]
[315358519,1708987842898,-500.0,0.00019452,2]
[315358522,1708987842908,-405.80118565,0.00019452,2]
[315358524,1708987842917,-500.0,0.00019452,2]
[315358526,1708987842926,-500.0,0.00019452,2]
[315358529,1708987842935,-500.0,0.00019452,2]
[315358532,1708987842945,-500.0,0.00019452,2]
[315358534,1708987842954,-500.0,0.00019452,2]
[315358536,1708987842963,-500.0,0.00019452,2]
[315358537,1708987842972,-500.0,0.00019452,2]
[315358538,1708987842981,-907.39,0.00019452,2]
[315358539,1708987842990,-949.56,0.00019452,2]
[315358540,1708987843000,-576.01,0.00019452,2]
[315358541,1708987843010,-500.0,0.00019452,2]
[315358542,1708987843019,-500.0,0.00019452,2]
[315358543,1708987843028,-500.0,0.00019452,2]
[315358544,1708987843037,-500.0,0.00019452,2]
[315358545,1708987843047,-500.0,0.00019452,2]
[315358547,1708987843057,-500.0,0.00019452,2]
[315358548,1708987843065,-500.0,0.00019452,2]
[315358549,1708987843074,-500.0,0.00019452,2]
[315358550,1708987843085,-500.0,0.00019452,2]
[315358551,1708987843095,-1206.9,0.00019452,2]
[315358552,1708987843104,-500.0,0.00019452,2]
[315358553,1708987843198,-17851.83,0.00019452,2]
[315358554,1708987843209,-500.0,0.00019452,2]
[315358555,1708987843219,-497.00174819,0.00019452,2]
[315358556,1708987843231,-500.0,0.00019452,2]
[315358557,1708987843244,-500.0,0.00019452,2]
[315358558,1708987843255,-500.0,0.00019452,2]
[315358559,1708987843266,-1573.46,0.00019452,2]
[315358560,1708987843276,-306.73743767,0.00019452,2]
[315358561,1708987843286,-500.0,0.00019452,2]
[315358562,1708987843296,-500.0,0.00019452,2]
[315358563,1708987843306,-500.0,0.00019452,2]
[315358565,1708987843315,-659.55,0.00019452,2]
[315358567,1708987843327,-7320.56,0.00019452,2]
[315358569,1708987843336,-500.0,0.00019452,2]
[315358571,1708987843346,-500.0,0.00019452,2]
[315358573,1708987843355,-3358.79,0.00019452,2]
[315358575,1708987843364,-500.0,0.00019452,2]
[315358577,1708987843373,-500.0,0.00019452,2]
[315358578,1708987843383,-500.0,0.00019452,2]
[315358579,1708987843392,-1701.35,0.00019452,2]
[315358580,1708987843403,-500.0,0.00019452,2]
[315358581,1708987843413,-500.0,0.00019452,2]
[315358582,1708987843422,-667.3,0.00019452,2]
[315358583,1708987843431,-502.11470017,0.00019452,2]
[315358584,1708987843442,-500.0,0.00019452,2]
[315358585,1708987843451,-500.0,0.00019452,2]
[315358586,1708987843460,-500.0,0.00019452,2]
[315358587,1708987843470,-500.0,0.00019452,2]
[315358588,1708987843480,-500.0,0.00019452,2]
[315358589,1708987843490,-500.0,0.00019452,2]
[315358590,1708987843499,-2537.06,0.00019452,2]
[315358591,1708987843509,-3540.73,0.00019452,2]
[315358592,1708987843525,-1874.02,0.00019452,2]
[315358593,1708987843535,-2076.84,0.00019452,2]
[315358594,1708987843544,-500.0,0.00019452,2]
[315358595,1708987843554,-500.0,0.00019452,2]
[315358596,1708987843564,-500.0,0.00019452,2]
[315358597,1708987843574,-449.93550135,0.00019486,2]
[315358598,1708987843584,-2217.16430545,0.00019626,2]
[315358599,1708987843594,-166.666666,0.00019627,2]
[315358600,1708987843605,-1213.2252471,0.00019641,2]
[315358601,1708987843614,-500.0,0.00019725,2]
[315358602,1708987843624,-500.0,0.00019725,2]
[315358603,1708987843633,-500.0,0.00019725,2]
[315358604,1708987843642,-500.0,0.00019725,2]
[315358605,1708987843652,-500.0,0.00019725,2]
[315358606,1708987843661,-500.0,0.00019725,2]
[315358607,1708987843670,-500.0,0.00019725,2]
[315358608,1708987843679,-500.0,0.00019725,2]
[315358609,1708987843688,-500.0,0.00019725,2]
[315358610,1708987843697,-243.58118859,0.00019725,2]
[315358611,1708987843706,-500.0,0.00019725,2]
[315358612,1708987843715,-500.0,0.00019725,2]
[315358613,1708987843724,-256.44210122,0.00019725,2]
[315358614,1708987843734,-1519.07055314,0.00019725,2]
[315358615,1708987843743,-500.0,0.00019725,2]
[315358616,1708987843753,-500.0,0.00019725,2]
[315358617,1708987843762,-500.0,0.00019725,2]
[315358618,1708987843771,-500.0,0.00019725,2]
[315358619,1708987843781,-210.84492649,0.00019725,2]
[315358620,1708987843791,-500.0,0.00019725,2]
[315358621,1708987843800,-500.0,0.00019725,2]
[315358622,1708987843809,-500.0,0.00019725,2]
[315358623,1708987843819,-500.0,0.00019725,2]
[315358624,1708987843829,-399.333294,0.00019725,2]
[315358625,1708987843838,-823.9,0.00019725,2]
[315358626,1708987843848,-823.9,0.00019725,2]
[315358627,1708987843857,-823.9,0.00019725,2]
[315358628,1708987843867,-243.58118859,0.00019725,2]
[315358629,1708987843876,-500.0,0.00019725,2]
[315358630,1708987843885,-500.0,0.00019725,2]
[315358631,1708987843894,-500.0,0.00019725,2]
[315358632,1708987843903,-500.0,0.00019725,2]
[315358633,1708987843912,-500.0,0.00019725,2]
[315358634,1708987843922,-500.0,0.00019725,2]
[315358635,1708987843932,-500.0,0.00019725,2]
[315358636,1708987843941,-500.0,0.00019725,2]
[315358637,1708987843950,-500.0,0.00019725,2]
[315358638,1708987843959,-500.0,0.00019725,2]
[315358639,1708987843968,-500.0,0.00019725,2]
[315358640,1708987843978,-256.44210122,0.00019725,2]
[315358641,1708987843988,-399.333294,0.00019725,2]
[315358642,1708987843997,-500.0,0.00019726,2]
[315358643,1708987844008,-172.04761987,0.00019726,2]
[315358644,1708987844019,-500.0,0.00019726,2]
[315358645,1708987844029,-500.0,0.00019726,2]
[315358646,1708987844040,-500.0,0.00019726,2]
[315358647,1708987844050,-765.62,0.00019726,2]
[315358648,1708987844059,-500.0,0.00019726,2]
[315358649,1708987844068,-500.0,0.00019726,2]
[315358650,1708987844078,-1321.13,0.00019726,2]
[315358651,1708987844087,-500.0,0.00019726,2]
[315358652,1708987844097,-1001.44015609,0.00019726,2]
[315358653,1708987844106,-500.0,0.00019726,2]
[315358654,1708987844116,-500.0,0.00019726,2]
[315358655,1708987844125,-500.0,0.00019726,2]
[315358656,1708987844134,-501.65704131,0.00019726,2]
[315358657,1708987844144,-500.0,0.00019726,2]
[315358658,1708987844153,-503.94397976,0.00019726,2]
[315358659,1708987844162,-500.0,0.00019726,2]
[315358660,1708987844172,-500.0,0.00019726,2]
[315358661,1708987844182,-500.0,0.00019726,2]
[315358662,1708987844192,-500.0,0.00019726,2]
[315358663,1708987844201,-500.0,0.00019726,2]
[315358664,1708987844210,-500.0,0.00019726,2]
[315358665,1708987844219,-2734.16,0.00019726,2]
[315358666,1708987844228,-500.0,0.00019726,2]
[315358667,1708987844237,-500.0,0.00019726,2]
[315358668,1708987844247,-500.0,0.00019726,2]
[315358669,1708987844256,-500.0,0.00019726,2]
[315358670,1708987844265,-736.28,0.00019726,2]
[315358671,1708987844275,-1000.0,0.00019726,2]
[315358672,1708987844284,-500.0,0.00019726,2]
[315358673,1708987844293,-500.0,0.00019726,2]
[315358674,1708987844302,-500.0,0.00019726,2]
[315358675,1708987844312,-647.33,0.00019726,2]
[315358676,1708987844321,-500.0,0.00019726,2]
[315358677,1708987844331,-500.0,0.00019726,2]
[315358678,1708987844341,-500.0,0.00019726,2]
[315358679,1708987844350,-503.59057309,0.00019726,2]
[315358680,1708987844360,-500.0,0.00019726,2]
[315358681,1708987844369,-500.0,0.00019726,2]
[315358682,1708987844378,-478.4437147,0.00019726,2]
[315358683,1708987844387,-500.0,0.00019726,2]
[315358684,1708987844397,-500.0,0.00019726,2]
[315358685,1708987844406,-500.0,0.00019726,2]
[315358686,1708987844415,-309.24117467,0.00019726,2]
[315358687,1708987844424,-527.5632554,0.00019726,2]
[315358688,1708987844433,-500.0,0.00019726,2]
[315358689,1708987844443,-500.0,0.00019726,2]
[315358690,1708987844452,-2067.98,0.00019726,2]
[315358691,1708987844463,-500.0,0.00019726,2]
[315358692,1708987844472,-500.0,0.00019726,2]
[315358693,1708987844481,-500.0,0.00019726,2]
[315358694,1708987844491,-206.9662042,0.00019726,2]
[315358695,1708987844501,-1598.84,0.00019726,2]
[315358696,1708987844511,-500.0,0.00019726,2]
[315358697,1708987844524,-443.78647685,0.00019726,2]
[315358698,1708987844534,-500.0,0.00019726,2]
[315358699,1708987844543,-500.0,0.00019726,2]
[315358700,1708987844553,-420.38233181,0.00019726,2]
[315358701,1708987844562,-529.94195677,0.00019726,2]
[315358702,1708987844571,-502.00218481,0.00019726,2]
[315358703,1708987844581,-10695.9,0.00019726,2]
[315358704,1708987844590,-3169.63,0.00019726,2]
[315358705,1708987844601,-500.0,0.00019726,2]
[315358706,1708987844612,-1421.48,0.00019726,2]
[315358707,1708987844621,-1242.97,0.00019726,2]
[315358708,1708987844630,-500.0,0.00019726,2]
[315358709,1708987844639,-500.0,0.00019726,2]
[315358710,1708987844649,-3446.49,0.00019726,2]
[315358711,1708987844658,-1987.99,0.00019726,2]
[315358712,1708987844667,-500.0,0.00019726,2]
[315358713,1708987844676,-1273.85,0.00019726,2]
[315358714,1708987844686,-500.0,0.00019726,2]
[315358715,1708987844695,-500.0,0.00019726,2]
[315358716,1708987844705,-557.07689794,0.00019726,2]
[315358717,1708987844715,-2537.49,0.00019726,2]
[315358718,1708987844725,-500.0,0.00019726,2]
[315358719,1708987844734,-502.13232332,0.00019726,2]
[315358720,1708987844744,-500.0,0.00019726,2]
[315358721,1708987844756,-500.0,0.00019726,2]
[315358722,1708987844766,-500.0,0.00019726,2]
[315358723,1708987844775,-376.01926502,0.00019726,2]
[315358724,1708987844784,-595.11,0.00019726,2]
[315358725,1708987844793,-500.0,0.00019726,2]
[315358726,1708987844804,-501.11759681,0.00019726,2]
[315358727,1708987844813,-1849.52,0.00019726,2]
[315358728,1708987844822,-500.0,0.00019726,2]
[315358729,1708987844832,-376.53441205,0.00019726,2]
[315358730,1708987844841,-1331.54,0.00019726,2]
[315358731,1708987844850,-2018.18,0.00019726,2]
[315358732,1708987844860,-501.25023183,0.00019726,2]
[315358733,1708987844869,-500.0,0.00019726,2]
[315358734,1708987844878,-500.0,0.00019726,2]
[315358735,1708987844887,-501.10864592,0.00019726,2]
[315358736,1708987844896,-225.36072718,0.00019726,2]
[315358737,1708987844905,-500.0,0.00019726,2]
[315358738,1708987844915,-500.0,0.00019726,2]
[315358739,1708987844925,-17115.04,0.00019726,2]
[315358740,1708987844935,-503.40024603,0.00019726,2]
[315358741,1708987844944,-500.0,0.00019726,2]
[315358742,1708987844954,-185.15827025,0.00019726,2]
[315358743,1708987844963,-500.0,0.00019726,2]
[315358744,1708987844972,-500.0,0.00019726,2]
[315358745,1708987844981,-500.0,0.00019726,2]
[315358746,1708987844991,-500.0,0.00019726,2]
[315358747,1708987845000,-171.64068098,0.00019726,2]
[315358748,1708987845009,-500.0,0.00019726,2]
[315358749,1708987845018,-500.0,0.00019726,2]
[315358750,1708987845027,-907.39,0.00019726,2]
[315358751,1708987845036,-949.56,0.00019726,2]
[315358752,1708987845045,-576.01,0.00019726,2]
[315358753,1708987845054,-500.0,0.00019726,2]
[315358754,1708987845063,-500.0,0.00019726,2]
[315358755,1708987845073,-500.0,0.00019726,2]
[315358756,1708987845084,-500.0,0.00019726,2]
[315358757,1708987845094,-500.0,0.00019726,2]
[315358758,1708987845103,-500.0,0.00019726,2]
[315358759,1708987845112,-500.0,0.00019726,2]
[315358760,1708987845122,-500.0,0.00019726,2]
[315358761,1708987845131,-500.0,0.00019726,2]
[315358762,1708987845141,-1206.9,0.00019726,2]
[315358763,1708987845151,-500.0,0.00019726,2]
[315358764,1708987845160,-17851.83,0.00019726,2]
[315358765,1708987845169,-500.0,0.00019726,2]
[315358766,1708987845179,-500.0,0.00019726,2]
[315358767,1708987845188,-500.0,0.00019726,2]
[315358768,1708987845198,-500.0,0.00019726,2]
[315358769,1708987845207,-1573.46,0.00019726,2]
[315358770,1708987845217,-500.0,0.00019726,2]
[315358771,1708987845226,-502.38633586,0.00019726,2]
[315358772,1708987845236,-290.39303171,0.00019726,2]
[315358773,1708987845246,-659.55,0.00019726,2]
[315358774,1708987845256,-7320.56,0.00019726,2]
[315358775,1708987845266,-500.0,0.00019726,2]
[315358776,1708987845275,-341.57797988,0.00019726,2]
[315358777,1708987845286,-3358.79,0.00019726,2]
[315358778,1708987845295,-500.0,0.00019726,2]
[315358779,1708987845304,-500.0,0.00019726,2]
[315358780,1708987845314,-500.0,0.00019726,2]
[315358781,1708987845405,-1701.35,0.00019726,2]
[315358782,1708987845416,-500.0,0.00019726,2]
[315358783,1708987845425,-500.0,0.00019726,2]
[315358784,1708987845435,-667.3,0.00019726,2]
[315358785,1708987845444,-500.0,0.00019726,2]
[315358786,1708987845453,-500.0,0.00019726,2]
[315358787,1708987845462,-500.0,0.00019726,2]
[315358788,1708987845471,-500.0,0.00019726,2]
[315358789,1708987845480,-500.0,0.00019726,2]
[315358790,1708987845490,-2537.06,0.00019726,2]
[315358791,1708987845499,-3540.73,0.00019726,2]
[315358793,1708987845509,-1874.02,0.00019726,2]
[315358794,1708987845519,-2076.84,0.00019726,2]
[315358795,1708987845529,-500.0,0.00019726,2]
[315358797,1708987845538,-287.05748937,0.00019726,2]
[315358798,1708987845547,-500.0,0.00019726,2]
[315358799,1708987845556,-2217.16430538,0.00019768,2]
[315358800,1708987845566,-8230.24916882,0.0001989,2]
[315358801,1708987845575,-449.93550135,0.00019894,2]
[315358802,1708987845584,-2217.16430538,0.00019909,2]
[315358803,1708987845593,-823.9,0.00019998,2]
[315358804,1708987845604,-823.9,0.00019999,2]
[315358805,1708987845613,-823.9,0.00019999,2]
[315358806,1708987845622,-823.9,0.00019999,2]
[315358807,1708987845633,-399.333294,0.00019999,2]
[315358808,1708987845642,-243.58118859,0.00019999,2]
[315358809,1708987845652,-500.0,0.00019999,2]
[315358810,1708987845661,-500.0,0.00019999,2]
[315358811,1708987845670,-500.0,0.00019999,2]
[315358813,1708987845679,-500.0,0.00019999,2]
[315358815,1708987845688,-500.0,0.00019999,2]
[315358816,1708987845697,-500.0,0.00019999,2]
[315358817,1708987845707,-500.0,0.00019999,2]
[315358818,1708987845716,-500.0,0.00019999,2]
[315358819,1708987845725,-500.0,0.00019999,2]
[315358821,1708987845734,-500.0,0.00019999,2]
[315358822,1708987845743,-500.0,0.00019999,2]
[315358823,1708987845752,-256.44210122,0.00019999,2]
[315358824,1708987845762,-500.0,0.0002,2]
[315358825,1708987845771,-500.0,0.0002,2]
[315358826,1708987845781,-500.0,0.0002,2]
[315358827,1708987845791,-500.0,0.0002,2]
[315358828,1708987845800,-765.62,0.0002,2]
[315358829,1708987845809,-1321.13,0.0002,2]
[315358830,1708987845818,-175.5,0.0002,2]
[315358831,1708987845827,-500.0,0.0002,2]
[315358832,1708987845836,-195.0089163,0.0002,2]
[315358833,1708987845846,-328.19481189,0.0002,2]
[315358834,1708987845855,-500.0,0.0002,2]
[315358835,1708987845864,-500.0,0.0002,2]
[315358836,1708987845873,-500.0,0.0002,2]
[315358837,1708987845881,-500.0,0.0002,2]
[315358838,1708987845891,-504.38560451,0.0002,2]
[315358839,1708987845900,-500.0,0.0002,2]
[315358840,1708987845909,-305.83280235,0.0002,2]
[315358841,1708987845919,-2734.16,0.0002,2]
[315358842,1708987845928,-503.94439511,0.0002,2]
[315358843,1708987845938,-500.0,0.0002,2]
[315358844,1708987845948,-500.0,0.0002,2]
[315358845,1708987845957,-736.28,0.0002,2]
[315358846,1708987845967,-1000.0,0.0002,2]
[315358847,1708987845976,-619.10188517,0.0002,2]
[315358848,1708987845986,-285.47079158,0.0002,2]
[315358849,1708987845995,-500.0,0.0002,2]
[315358850,1708987846005,-647.33,0.0002,2]
[315358851,1708987846015,-500.0,0.0002,2]
[315358852,1708987846024,-500.0,0.0002,2]
[315358853,1708987846033,-500.0,0.0002,2]
[315358854,1708987846043,-500.0,0.0002,2]
[315358855,1708987846052,-500.0,0.0002,2]
[315358856,1708987846062,-500.0,0.0002,2]
[315358857,1708987846071,-500.0,0.0002,2]
[315358858,1708987846081,-500.0,0.0002,2]
[315358859,1708987846090,-500.0,0.0002,2]
[315358860,1708987846099,-2067.98,0.0002,2]
[315358861,1708987846108,-500.0,0.0002,2]
[315358862,1708987846117,-500.0,0.0002,2]
[315358863,1708987846126,-500.0,0.0002,2]
[315358864,1708987846135,-1598.84,0.0002,2]
[315358865,1708987846144,-500.0,0.0002,2]
[315358866,1708987846153,-500.0,0.0002,2]
[315358867,1708987846162,-10695.9,0.0002,2]
[315358868,1708987846171,-3169.63,0.0002,2]
[315358869,1708987846181,-500.0,0.0002,2]
[315358870,1708987846190,-1421.48,0.0002,2]
[315358871,1708987846199,-1242.97,0.0002,2]
[315358872,1708987846207,-500.0,0.0002,2]
[315358873,1708987846216,-200.0,0.0002,2]
[315358874,1708987846225,-500.0,0.0002,2]
[315358875,1708987846234,-3446.49,0.0002,2]
[315358876,1708987846243,-1987.99,0.0002,2]
[315358877,1708987846253,-500.0,0.0002,2]
[315358878,1708987846262,-1273.85,0.0002,2]
[315358879,1708987846270,-500.0,0.0002,2]
[315358880,1708987846279,-579.17,0.0002,2]
[315358881,1708987846289,-2537.49,0.0002,2]
[315358882,1708987846298,-500.0,0.0002,2]
[315358883,1708987846307,-501.79848938,0.0002,2]
[315358884,1708987846316,-500.0,0.0002,2]
[315358885,1708987846325,-595.11,0.0002,2]
[315358886,1708987846334,-500.0,0.0002,2]
[315358887,1708987846343,-1849.52,0.0002,2]
[315358888,1708987846352,-596.53827503,0.0002,2]
[315358889,1708987846361,-1331.54,0.0002,2]
[315358890,1708987846370,-2018.18,0.0002,2]
[315358891,1708987846379,-503.33235874,0.0002,2]
[315358892,1708987846388,-500.0,0.0002,2]
[315358893,1708987846398,-500.0,0.0002,2]
[315358894,1708987846406,-500.0,0.0002,2]
[315358895,1708987846416,-17115.04,0.0002,2]
[315358896,1708987846426,-500.0,0.0002,2]
[315358897,1708987846435,-500.0,0.0002,2]
[315358898,1708987846445,-500.0,0.0002,2]
[315358899,1708987846455,-500.0,0.0002,2]
[315358900,1708987846464,-500.0,0.0002,2]
[315358901,1708987846474,-500.0,0.0002,2]
[315358902,1708987846483,-907.39,0.0002,2]
[315358903,1708987846492,-949.56,0.0002,2]
[315358904,1708987846501,-576.01,0.0002,2]
[315358905,1708987846511,-500.0,0.0002,2]
[315358906,1708987846524,-500.0,0.0002,2]
[315358907,1708987846533,-500.0,0.0002,2]
[315358908,1708987846542,-500.0,0.0002,2]
[315358909,1708987846551,-500.0,0.0002,2]
[315358910,1708987846560,-500.0,0.0002,2]
[315358911,1708987846570,-1206.9,0.0002,2]
[315358912,1708987846580,-500.0,0.0002,2]
[315358913,1708987846588,-17851.83,0.0002,2]
[315358914,1708987846599,-500.0,0.0002,2]
[315358915,1708987846609,-500.0,0.0002,2]
[315358916,1708987846619,-500.0,0.0002,2]
[315358917,1708987846628,-1573.46,0.0002,2]
[315358918,1708987846637,-500.0,0.0002,2]
[315358919,1708987846647,-659.55,0.0002,2]
[315358920,1708987846656,-7320.56,0.0002,2]
[315358921,1708987846665,-500.0,0.0002,2]
[315358922,1708987846674,-3358.79,0.0002,2]
[315358923,1708987846683,-500.0,0.0002,2]
[315358924,1708987846693,-301.74903391,0.0002,2]
[315358925,1708987846702,-500.0,0.0002,2]
[315358926,1708987846711,-1701.35,0.0002,2]
[315358927,1708987846720,-667.3,0.0002,2]
[315358928,1708987846730,-500.0,0.0002,2]
[315358929,1708987846739,-500.0,0.0002,2]
[315358930,1708987846748,-2537.06,0.0002,2]
[315358931,1708987846758,-500.0,0.0002,2]
[315358932,1708987846767,-3540.73,0.0002,2]
[315358933,1708987846776,-1874.02,0.0002,2]
[315358934,1708987846786,-2076.84,0.0002,2]
[315358935,1708987846795,-500.0,0.0002,2]
[315358936,1708987846804,-248.23,0.0002003,7]
[315358937,1708987846813,-2217.16430538,0.00020051,2]
[315358938,1708987846822,-166.666666,0.00020076,2]
[315358939,1708987846832,-2217.16430538,0.00020192,2]
[315358940,1708987846841,-200.5826354,0.00020219,2]
[315358941,1708987846850,-243.58118859,0.00020272,2]
[315358942,1708987846859,-500.0,0.00020272,2]
[315358943,1708987846868,-500.0,0.00020272,2]
[315358944,1708987846878,-500.0,0.00020272,2]
[315358945,1708987846887,-500.0,0.00020272,2]
[315358946,1708987846896,-500.0,0.00020272,2]
[315358947,1708987846905,-500.0,0.00020272,2]
[315358948,1708987846914,-500.0,0.00020272,2]
[315358949,1708987846923,-500.0,0.00020272,2]
[315358950,1708987846933,-500.0,0.00020272,2]
[315358951,1708987846942,-500.0,0.00020272,2]
[315358952,1708987846951,-500.0,0.00020272,2]
[315358953,1708987846960,-256.44210122,0.00020272,2]
[315358954,1708987846969,-823.9,0.00020272,2]
[315358955,1708987846978,-823.9,0.00020272,2]
[315358956,1708987846987,-823.9,0.00020272,2]
[315358957,1708987846996,-823.9,0.00020272,2]
[315358958,1708987847005,-823.9,0.00020272,2]
[315358959,1708987847014,-824.12976624,0.00020272,2]
[315358960,1708987847023,-500.0,0.00020273,2]
[315358961,1708987847033,-765.62,0.00020273,2]
[315358962,1708987847043,-1321.13,0.00020273,2]
[315358963,1708987847053,-500.0,0.00020273,2]
[315358964,1708987847063,-500.0,0.00020273,2]
[315358965,1708987847072,-298.70806404,0.00020273,2]
[315358966,1708987847082,-500.0,0.00020273,2]
[315358967,1708987847091,-2734.16,0.00020273,2]
[315358968,1708987847100,-500.0,0.00020273,2]
[315358969,1708987847109,-520.13908972,0.00020273,2]
[315358970,1708987847119,-736.28,0.00020273,2]
[315358971,1708987847128,-1000.0,0.00020273,2]
[315358972,1708987847138,-612.89728722,0.00020273,2]
[315358973,1708987847147,-647.33,0.00020273,2]
[315358974,1708987847157,-500.0,0.00020273,2]
[315358975,1708987847166,-500.0,0.00020273,2]
[315358976,1708987847175,-500.0,0.00020273,2]